[Event "FIDE WCCC Girls-10 2024"]
[Site "Montesilvano"]
[Date "2024.11.18"]
[Round "3.42"]
[White "Muradli, Sabira"]
[Black "Song, Rina"]
[Result "1-0"]
[ECO "B13"]
[WhiteElo "1430"]
[BlackElo "1599"]
[PlyCount "75"]
[EventDate "2024.11.18"]
[EventType "swiss"]
[EventCountry "ITA"]
[TimeControl "5400+30"]

1. e4 {[%emt 0:00:03]} c6 {[%emt 0:00:12]} 2. d4 {[%emt 0:00:04]} d5 {[%emt 0:00:11]} 3. exd5 {[%emt 0:00:07]} cxd5 {[%emt 0:00:17]} 4. Bd3 {[%emt 0:00:07]} Nc6 {[%emt 0:00:33]} 5. Nf3 {[%emt 0:00:13]} Bg4 {[%emt 0:00:38]} 6. c3 {[%emt 0:01:06]} Qc7 {[%emt 0:01:04]} 7. O-O {[%emt 0:00:39]} e6 {[%emt 0:02:55]} 8. Bb5 {[%emt 0:04:08]} Nf6 {[%emt 0:01:50]} 9. Qd3 {[%emt 0:00:16]} Bd6 {[%emt 0:00:49]} 10. h3 {[%emt 0:02:13]} Bf5 {[%emt 0:02:08]} 11. Qd1 {[%emt 0:00:59]} O-O {[%emt 0:00:29]} 12. Be3 {[%emt 0:05:16]} a6 {[%emt 0:04:20]} 13. Bd3 {[%emt 0:00:18]} Bxd3 {[%emt 0:01:09]} 14. Qxd3 {[%emt 0:00:09]} b5 {[%emt 0:00:53]} 15. Nbd2 {[%emt 0:00:32]} Qb6 {[%emt 0:01:39]} 16. Ne5 {[%emt 0:00:31]} Qb7 {[%emt 0:00:44]} 17. Nb3 {[%emt 0:02:51]} Nxe5 {[%emt 0:02:11]} 18. dxe5 {[%emt 0:00:12]} Bxe5 {[%emt 0:00:14]} 19. Nc5 {[%emt 0:00:05]} Qc7 {[%emt 0:01:11]} 20. b4 {[%emt 0:02:55]} Rfd8 {[%emt 0:03:31]} 21. Rac1 {[%emt 0:05:13]} Qe7 {[%emt 0:01:43]} 22. Bd4 {[%emt 0:04:38]} Bxd4 {[%emt 0:05:26]} 23. cxd4 {[%emt 1:09:25]} Qa7 {[%emt 0:02:00]} 24. Rfe1 {[%emt 0:00:00]} Qb6 {[%emt 0:01:55]} 25. Re2 {[%emt 0:00:00]} Nd7 {[%emt 0:04:49]} 26. Nxd7 {[%emt 0:00:00]} Rxd7 {[%emt 0:00:08]} 27. Rec2 {[%emt 0:00:00]} Rdd8 {[%emt 0:01:51]} 28. Rc6 {[%emt 0:00:00]} Qb8 {[%emt 0:02:08]} 29. Rc7 {[%emt 0:00:00]} Ra7 {[%emt 0:00:58]} 30. R7c6 {[%emt 0:00:00]} e5 {[%emt 0:05:42]} 31. Qf5 {[%emt 0:00:00]} g6 {[%emt 0:09:33]} 32. Qg4 {[%emt 0:00:00]} Ra8 {[%emt 0:01:19]} 33. Rc7 {[%emt 0:00:00]} Qb6 {[%emt 0:03:07]} 34. dxe5 {[%emt 0:00:00]} d4 {[%emt 0:00:45]} 35. Qf4 {[%emt 0:00:00]} Qe6 {[%emt 0:00:59]} 36. R1c6 {[%emt 0:00:00]} Qxa2 {[%emt 0:02:32]} 37. Rf6 {[%emt 0:00:00]} Rf8 {[%emt 0:02:14]} 38. e6 {[%emt 0:00:00]} 1-0

[Event "FIDE WCCC Girls-10 2024"]
[Site "Montesilvano"]
[Date "2024.11.18"]
[Round "3.43"]
[White "Damaso Tacoronte, Carolina"]
[Black "Gastaldo, Agathe"]
[Result "0-1"]
[ECO "B07"]
[WhiteElo "1875"]
[BlackElo "1589"]
[PlyCount "52"]
[EventDate "2024.11.18"]
[EventType "swiss"]
[EventCountry "ITA"]
[TimeControl "5400+30"]

1. e4 {[%emt 1:31:00]} d6 {[%emt 0:00:16]} 2. d4 {[%emt 0:00:00]} Nf6 {[%emt 0:00:15]} 3. Nc3 {[%emt 0:00:00]} g6 {[%emt 0:00:31]} 4. Bc4 {[%emt 0:00:00]} Bg7 {[%emt 0:01:16]} 5. Qe2 {[%emt 0:00:00]} O-O {[%emt 0:03:23]} 6. Bg5 {[%emt 0:00:00]} e5 {[%emt 0:03:39]} 7. dxe5 {[%emt 0:00:00]} dxe5 {[%emt 0:00:54]} 8. Nf3 {[%emt 0:00:00]} Bg4 {[%emt 0:02:47]} 9. h3 {[%emt 0:00:00]} Bxf3 {[%emt 0:04:25]} 10. Qxf3 {[%emt 0:00:00]} c6 {[%emt 0:02:27]} 11. a4 {[%emt 0:00:00]} Nbd7 {[%emt 0:07:07]} 12. O-O-O {[%emt 0:00:00]} Qc7 {[%emt 0:04:30]} 13. g4 {[%emt 0:00:00]} a6 {[%emt 0:04:47]} 14. h4 {[%emt 0:00:00]} b5 {[%emt 0:02:52]} 15. axb5 {[%emt 0:00:00]} axb5 {[%emt 0:01:33]} 16. Bb3 {[%emt 0:00:00]} Ra1+ {[%emt 0:00:13]} 17. Nb1 {[%emt 0:00:00]} Rfa8 {[%emt 0:02:00]} 18. h5 {[%emt 0:00:00]} Qa5 {[%emt 0:02:05]} 19. c3 {[%emt 0:00:00]} Nc5 {[%emt 0:10:51]} 20. Bc2 {[%emt 0:00:00]} Qa2 {[%emt 0:11:58]} 21. Bxf6 {[%emt 0:00:00]} Nb3+ {[%emt 0:01:38]} 22. Bxb3 {[%emt 0:00:00]} Rxb1+ {[%emt 0:01:11]} 23. Kc2 {[%emt 0:00:00]} Rxb2+ {[%emt 0:01:05]} 24. Kd3 {[%emt 0:00:00]} Qxb3 {[%emt 0:01:17]} 25. Rd2 {[%emt 0:00:00]} Qc4+ {[%emt 0:00:38]} 26. Ke3 {[%emt 0:00:00]} Qxc3+ {[%emt 0:00:29]} 0-1

[Event "FIDE WCCC Girls-10 2024"]
[Site "Montesilvano"]
[Date "2024.11.18"]
[Round "3.44"]
[White "Guerra Mansilla, Maria Ignacia"]
[Black "Yang, Haeun"]
[Result "1-0"]
[ECO "A30"]
[WhiteElo "1545"]
[BlackElo "1475"]
[PlyCount "177"]
[EventDate "2024.11.18"]
[EventType "swiss"]
[EventCountry "ITA"]
[TimeControl "5400+30"]

1. c4 {[%emt 0:00:30]} c5 {[%emt 1:31:00]} 2. d3 d6 {[%emt 0:00:00]} 3. Nc3 {[%emt 0:05:05]} Nc6 {[%emt 0:00:00]} 4. g3 {[%emt 0:00:26]} Nf6 {[%emt 0:00:00]} 5. Bg2 {[%emt 0:01:13]} e5 {[%emt 0:00:00]} 6. e4 {[%emt 0:01:31]} Be6 {[%emt 0:00:00]} 7. Nge2 {[%emt 0:03:07]} Be7 {[%emt 0:00:00]} 8. O-O {[%emt 0:01:32]} Qd7 {[%emt 0:03:30]} 9. f4 Bh3 10. f5 Bxg2 {[%emt 0:00:00]} 11. Kxg2 {[%emt 0:01:30]} Rg8 {[%emt 0:01:30]} 12. Qa4 {[%emt 0:22:56]} g6 {[%emt 0:00:30]} 13. Nd5 {[%emt 0:01:07]} gxf5 {[%emt 0:00:00]} 14. exf5 {[%emt 0:00:30]} Nh5 {[%emt 0:00:00]} 15. f6 {[%emt 0:10:36]} Bd8 {[%emt 0:00:00]} 16. a3 {[%emt 0:02:06]} Qg4 {[%emt 0:00:00]} 17. Qc2 {[%emt 0:03:49]} Rg6 {[%emt 0:00:00]} 18. Qd2 {[%emt 0:05:16]} Nxf6 {[%emt 0:00:00]} 19. Nxf6+ {[%emt 0:00:51]} Bxf6 {[%emt 0:00:00]} 20. Qe3 {[%emt 0:04:47]} O-O-O {[%emt 0:00:00]} 21. Qf3 {[%emt 0:05:23]} Qe6 {[%emt 0:00:00]} 22. Qf5 {[%emt 0:02:59]} Rdg8 {[%emt 0:00:00]} 23. Qxe6+ {[%emt 0:26:46]} fxe6 24. Nc3 Rd8 25. Ne4 Bg7 26. Bd2 b6 27. Bg5 Rd7 28. Nf6 Rf7 29. Ne4 Rd7 30. Bd2 d5 31. cxd5 exd5 32. Nc3 Na5 33. Rae1 c4 34. dxc4 Nxc4 35. Bc1 d4 36. Ne4 d3 37. Nd2 Nxd2 38. Bxd2 Rc6 39. Bc3 d2 40. Rd1 Bh6 41. Rf2 Rcd6 42. Re2 Rd5 43. Rxe5 Rxe5 44. Bxe5 Re7 45. Bf4 Bxf4 46. gxf4 Rd7 47. Kf3 Kc7 48. Ke2 Rd4 49. Ke3 Rd5 50. Rxd2 Rxd2 51. Kxd2 Kd6 52. Ke3 Ke6 53. Ke4 Kf6 54. f5 h5 55. Kf4 a5 56. a4 h4 57. h3 Kf7 58. Kg5 Kg7 59. f6+ Kf7 60. Kxh4 Kxf6 61. Kg4 Kg6 62. Kf4 Kf6 63. Ke4 Ke6 64. Kd4 Kd6 65. Kc4 Kc6 66. h4 Kd6 67. Kb5 Ke6 68. Kxb6 Kf5 69. Kxa5 Kg4 70. b4 Kxh4 71. b5 Kg5 72. b6 Kf4 73. b7 Ke4 74. b8=Q Kd4 75. Qb4+ Ke5 76. Qc4 Kd6 77. Qb5 Ke6 78. Qc5 Kd7 79. Qb6 Kc8 80. Qa7 Kd8 81. Qb7 Ke8 82. Qc7 Kf8 83. Qd7 Kg8 84. Qe7 Kh8 85. Kb6 Kg8 86. a5 Kh8 87. a6 Kg8 88. a7 Kh8 89. a8=Q# {[%emt 0:06:44]} 1-0

[Event "FIDE WCCC Girls-10 2024"]
[Site "Montesilvano"]
[Date "2024.11.18"]
[Round "3.46"]
[White "Deviatkova, Diana"]
[Black "Khelfallah, Ikhlas"]
[Result "1/2-1/2"]
[ECO "C58"]
[WhiteElo "1503"]
[BlackElo "1449"]
[PlyCount "57"]
[EventDate "2024.11.18"]
[EventType "swiss"]
[EventCountry "ITA"]
[TimeControl "5400+30"]

1. e4 e5 2. Nf3 Nc6 3. Bc4 Nf6 4. Ng5 d5 5. exd5 Na5 6. d3 Nxd5 7. Bxd5 Qxd5 8. Nf3 Be7 9. Nc3 Qe6 10. Bd2 a6 11. O-O O-O 12. Re1 Nc6 13. d4 Qg6 14. Kh1 Bg4 15. dxe5 Nd4 16. Bf4 Nxc2 17. Rc1 Nxe1 18. Qxe1 Bxf3 19. gxf3 c6 20. Bg3 Rad8 21. Ne4 Rfe8 22. Qf1 Qf5 23. Nd6 Qxf3+ 24. Kg1 Bxd6 25. exd6 h6 26. Rd1 Qe2 27. Qxe2 Rxe2 28. Rf1 Rxb2 29. d7 1/2-1/2